[Event "Titled Tuesday Blitz November 08 Late 2022"]
[White "Chigaev, Maksim"]
[Black "Romanchuk, Viktor"]
[WhiteFideId "4108116"]
[BlackFideId "14109271"]
[WhiteElo "2541"]
[BlackElo "2242"]
[Result "1-0"]
[Round "08"]
[TimeControl "180+1"]
[Date "2022.11.08"]
[WhiteClock "0:00:02"]
[BlackClock "0:00:01"]

1. Nf3 {[%clk 0:03:00]}  d5 {[%clk 0:02:59]} 2. c4 {[%clk 0:03:00]}  c6 {[%clk 0:02:59]} 3. g3 {[%clk 0:02:59]}  Nf6 {[%clk 0:02:59]} 4. Bg2 {[%clk 0:02:59]}  Bg4 {[%clk 0:02:59]} 5. Ne5 {[%clk 0:02:57]}  Be6 {[%clk 0:02:59]} 6. cxd5 {[%clk 0:02:57]}  Bxd5 {[%clk 0:02:58]} 7. Nf3 {[%clk 0:02:58]}  Nbd7 {[%clk 0:02:50]} 8. Nc3 {[%clk 0:02:58]}  Be6 {[%clk 0:02:48]} 9. O-O {[%clk 0:02:54]}  Bg4 {[%clk 0:02:47]} 10. d4 {[%clk 0:02:51]}  e6 {[%clk 0:02:47]} 11. Qb3 {[%clk 0:02:47]}  Qb6 {[%clk 0:02:46]} 12. e4 {[%clk 0:02:36]}  Be7 {[%clk 0:02:41]} 13. Be3 {[%clk 0:02:36]}  O-O {[%clk 0:02:39]} 14. Ne5 {[%clk 0:02:19]}  Rfd8 {[%clk 0:02:21]} 15. h3 {[%clk 0:02:17]}  Bh5 {[%clk 0:02:17]} 16. g4 {[%clk 0:02:06]}  Bg6 {[%clk 0:02:16]} 17. Qxb6 {[%clk 0:02:06]}  axb6 {[%clk 0:02:14]} 18. f4 {[%clk 0:01:49]}  h6 {[%clk 0:02:08]} 19. Nxd7 {[%clk 0:01:36]}  Nxd7 {[%clk 0:01:50]} 20. f5 {[%clk 0:01:33]}  Bh7 {[%clk 0:01:49]} 21. e5 {[%clk 0:01:33]}  b5 {[%clk 0:01:33]} 22. Ne4 {[%clk 0:01:24]}  Bf8 {[%clk 0:01:28]} 23. a3 {[%clk 0:01:16]}  Nb6 {[%clk 0:01:28]} 24. Rad1 {[%clk 0:01:16]}  Nc4 {[%clk 0:01:04]} 25. Bc1 {[%clk 0:01:16]}  b4 {[%clk 0:01:03]} 26. axb4 {[%clk 0:01:12]}  Bxb4 {[%clk 0:01:02]} 27. b3 {[%clk 0:00:54]}  Nb6 {[%clk 0:00:59]} 28. h4 {[%clk 0:00:41]}  Ra2 {[%clk 0:00:46]} 29. h5 {[%clk 0:00:31]}  Nd5 {[%clk 0:00:45]} 30. Rd3 {[%clk 0:00:23]}  Rc2 {[%clk 0:00:39]} 31. Rdf3 {[%clk 0:00:19]}  Nc3 {[%clk 0:00:31]} 32. Nxc3 {[%clk 0:00:12]}  Bxc3 {[%clk 0:00:32]} 33. Be3 {[%clk 0:00:08]}  exf5 {[%clk 0:00:22]} 34. gxf5 {[%clk 0:00:08]}  Bxd4 {[%clk 0:00:23]} 35. e6 {[%clk 0:00:09]}  Bxe3+ {[%clk 0:00:17]} 36. Rxe3 {[%clk 0:00:09]}  Re8 {[%clk 0:00:09]} 37. Bh3 {[%clk 0:00:04]}  Rc5 {[%clk 0:00:07]} 38. Kh2 {[%clk 0:00:03]}  fxe6 {[%clk 0:00:04]} 39. fxe6 {[%clk 0:00:04]}  Rxh5 {[%clk 0:00:03]} 40. e7 {[%clk 0:00:04]}  Bg6 {[%clk 0:00:01]} 41. Kg3 {[%clk 0:00:03]}  Rg5+ {[%clk 0:00:01]} 42. Kh2 {[%clk 0:00:04]}  Rh5 {[%clk 0:00:01]} 43. Rf4 {[%clk 0:00:02]} 1-0


[Site "https://www.chess.com"]

[Event "Titled Tuesday Blitz November 08 Late 2022"]
[White "Crevatin, Leo"]
[Black "Prem, Pranav"]
[WhiteFideId "1726307"]
[BlackFideId "30901057"]
[WhiteElo "2208"]
[BlackElo "1970"]
[Result "1/2-1/2"]
[Round "08"]
[TimeControl "180+1"]
[Date "2022.11.09"]
[WhiteClock "0:00:15"]
[BlackClock "0:00:12"]

1. e4 {[%clk 0:03:00]}  c5 {[%clk 0:02:57]} 2. Nf3 {[%clk 0:03:00]}  d6 {[%clk 0:02:57]} 3. d4 {[%clk 0:03:00]}  cxd4 {[%clk 0:02:58]} 4. Nxd4 {[%clk 0:03:01]}  Nf6 {[%clk 0:02:55]} 5. Nc3 {[%clk 0:03:01]}  a6 {[%clk 0:02:54]} 6. Bc4 {[%clk 0:03:01]}  e6 {[%clk 0:02:53]} 7. Be3 {[%clk 0:03:01]}  b5 {[%clk 0:02:46]} 8. Bb3 {[%clk 0:02:59]}  Bb7 {[%clk 0:02:41]} 9. f3 {[%clk 0:02:59]}  Be7 {[%clk 0:02:37]} 10. Qd2 {[%clk 0:02:48]}  O-O {[%clk 0:02:29]} 11. O-O-O {[%clk 0:02:47]}  Nbd7 {[%clk 0:02:26]} 12. a3 {[%clk 0:02:43]}  Rc8 {[%clk 0:02:20]} 13. Kb1 {[%clk 0:02:42]}  Ne5 {[%clk 0:02:19]} 14. g4 {[%clk 0:02:37]}  Nc4 {[%clk 0:02:13]} 15. Bxc4 {[%clk 0:02:37]}  Rxc4 {[%clk 0:02:14]} 16. g5 {[%clk 0:02:28]}  Nd7 {[%clk 0:02:13]} 17. h4 {[%clk 0:02:28]}  Ne5 {[%clk 0:01:50]} 18. h5 {[%clk 0:02:25]}  b4 {[%clk 0:01:21]} 19. axb4 {[%clk 0:02:15]}  Rxb4 {[%clk 0:01:21]} 20. Qg2 {[%clk 0:02:03]}  Rxb2+ {[%clk 0:01:04]} 21. Kxb2 {[%clk 0:02:03]}  Nc4+ {[%clk 0:01:04]} 22. Kc1 {[%clk 0:02:03]}  Nxe3 {[%clk 0:01:04]} 23. Qg3 {[%clk 0:01:57]}  Nxd1 {[%clk 0:01:00]} 24. Kxd1 {[%clk 0:01:58]}  Bxg5 {[%clk 0:00:56]} 25. Rg1 {[%clk 0:01:57]}  Bh6 {[%clk 0:00:50]} 26. Nde2 {[%clk 0:01:50]}  f5 {[%clk 0:00:41]} 27. Nd4 {[%clk 0:01:43]}  Qf6 {[%clk 0:00:32]} 28. Nce2 {[%clk 0:01:34]}  fxe4 {[%clk 0:00:23]} 29. fxe4 {[%clk 0:01:35]}  Bxe4 {[%clk 0:00:20]} 30. Qxd6 {[%clk 0:01:34]}  Rd8 {[%clk 0:00:19]} 31. Qb6 {[%clk 0:01:03]}  Be3 {[%clk 0:00:19]} 32. Re1 {[%clk 0:00:45]}  Bxd4 {[%clk 0:00:18]} 33. Nxd4 {[%clk 0:00:45]}  Rxd4+ {[%clk 0:00:18]} 34. Kc1 {[%clk 0:00:45]}  Rd8 {[%clk 0:00:14]} 35. Qxa6 {[%clk 0:00:43]}  Bf5 {[%clk 0:00:12]} 36. Qa3 {[%clk 0:00:35]}  Qd4 {[%clk 0:00:11]} 37. Qa5 {[%clk 0:00:15]}  Rc8 {[%clk 0:00:09]} 38. Re2 {[%clk 0:00:15]}  Qf4+ {[%clk 0:00:07]} 39. Kb2 {[%clk 0:00:14]}  Rb8+ {[%clk 0:00:07]} 40. Ka2 {[%clk 0:00:08]}  Qc4+ {[%clk 0:00:06]} 41. Ka3 {[%clk 0:00:08]}  Qxe2 {[%clk 0:00:05]} 42. Qc7 {[%clk 0:00:09]}  Ra8+ {[%clk 0:00:05]} 43. Kb4 {[%clk 0:00:09]}  Qe4+ {[%clk 0:00:04]} 44. Kc5 {[%clk 0:00:09]}  Qd5+ {[%clk 0:00:04]} 45. Kb4 {[%clk 0:00:09]}  Qe4+ {[%clk 0:00:02]} 46. Kb3 {[%clk 0:00:09]}  Rf8 {[%clk 0:00:03]} 47. Qc5 {[%clk 0:00:09]}  Qxc2+ {[%clk 0:00:03]} 48. Qxc2 {[%clk 0:00:08]}  Bxc2+ {[%clk 0:00:04]} 49. Kxc2 {[%clk 0:00:09]}  Rf5 {[%clk 0:00:05]} 50. Kd2 {[%clk 0:00:10]}  Rxh5 {[%clk 0:00:05]} 51. Ke3 {[%clk 0:00:10]}  Rf5 {[%clk 0:00:06]} 52. Ke4 {[%clk 0:00:11]}  g5 {[%clk 0:00:07]} 53. Ke3 {[%clk 0:00:11]}  g4 {[%clk 0:00:08]} 54. Ke4 {[%clk 0:00:12]}  g3 {[%clk 0:00:09]} 55. Ke3 {[%clk 0:00:13]}  g2 {[%clk 0:00:10]} 56. Ke4 {[%clk 0:00:13]}  g1=Q {[%clk 0:00:11]} 57. Kd3 {[%clk 0:00:14]}  Qe1 {[%clk 0:00:11]} 58. Kc4 {[%clk 0:00:13]}  Rd5 {[%clk 0:00:12]} 59. Kb3 {[%clk 0:00:14]}  Qc1 {[%clk 0:00:12]} 60. Ka4 {[%clk 0:00:15]}  Qb2 {[%clk 0:00:12]} 1/2-1/2


[Site "https://www.chess.com"]

[Event "Titled Tuesday Blitz November 08 Late 2022"]
[White "Derige Kane, Yan"]
[Black "Bernat, David"]
[WhiteFideId "20665431"]
[BlackFideId "2099225"]
[WhiteElo "2148"]
[BlackElo "2335"]
[Result "0-1"]
[Round "08"]
[TimeControl "180+1"]
[Date "2022.11.09"]
[WhiteClock "0:00:29"]
[BlackClock "0:00:08"]

1. e4 {[%clk 0:03:00]}  c5 {[%clk 0:02:59]} 2. Nf3 {[%clk 0:02:57]}  g6 {[%clk 0:02:59]} 3. d4 {[%clk 0:02:56]}  cxd4 {[%clk 0:03:00]} 4. Qxd4 {[%clk 0:02:56]}  Nf6 {[%clk 0:03:01]} 5. e5 {[%clk 0:02:57]}  Nc6 {[%clk 0:03:00]} 6. Qh4 {[%clk 0:02:55]}  Nxe5 {[%clk 0:03:00]} 7. Nxe5 {[%clk 0:02:52]}  Qa5+ {[%clk 0:02:59]} 8. Nc3 {[%clk 0:02:53]}  Qxe5+ {[%clk 0:02:59]} 9. Be2 {[%clk 0:02:54]}  Bg7 {[%clk 0:02:51]} 10. O-O {[%clk 0:02:53]}  O-O {[%clk 0:02:51]} 11. Bf4 {[%clk 0:02:52]}  Qa5 {[%clk 0:02:47]} 12. Bg5 {[%clk 0:02:47]}  d6 {[%clk 0:02:41]} 13. Rfe1 {[%clk 0:02:40]}  Bf5 {[%clk 0:02:41]} 14. Bc4 {[%clk 0:02:31]}  Rae8 {[%clk 0:01:48]} 15. Bb5 {[%clk 0:02:25]}  Rc8 {[%clk 0:01:43]} 16. Rxe7 {[%clk 0:02:14]}  Rxc3 {[%clk 0:01:38]} 17. bxc3 {[%clk 0:02:15]}  Ne4 {[%clk 0:01:17]} 18. Bd3 {[%clk 0:02:05]}  Nxg5 {[%clk 0:01:01]} 19. Qxg5 {[%clk 0:02:06]}  Qxc3 {[%clk 0:01:01]} 20. Rb1 {[%clk 0:01:28]}  Bxd3 {[%clk 0:00:51]} 21. cxd3 {[%clk 0:01:22]}  Bf6 {[%clk 0:00:49]} 22. Rc7 {[%clk 0:01:14]}  Qxc7 {[%clk 0:00:37]} 23. Qxf6 {[%clk 0:01:14]}  Qc2 {[%clk 0:00:36]} 24. Qb2 {[%clk 0:01:03]}  Qxd3 {[%clk 0:00:26]} 25. Qxb7 {[%clk 0:01:01]}  Re8 {[%clk 0:00:21]} 26. h3 {[%clk 0:00:57]}  a5 {[%clk 0:00:19]} 27. Qb5 {[%clk 0:00:42]}  Re1+ {[%clk 0:00:18]} 28. Kh2 {[%clk 0:00:40]}  Qxb1 {[%clk 0:00:18]} 29. Qxa5 {[%clk 0:00:37]}  Rh1+ {[%clk 0:00:18]} 30. Kg3 {[%clk 0:00:38]}  Qd3+ {[%clk 0:00:18]} 31. f3 {[%clk 0:00:38]}  Qf5 {[%clk 0:00:15]} 32. Qd8+ {[%clk 0:00:35]}  Kg7 {[%clk 0:00:16]} 33. Qxd6 {[%clk 0:00:36]}  Qf6 {[%clk 0:00:13]} 34. Qc7 {[%clk 0:00:36]}  Re1 {[%clk 0:00:12]} 35. f4 {[%clk 0:00:31]}  Re3+ {[%clk 0:00:09]} 36. Kh2 {[%clk 0:00:29]}  Re4 {[%clk 0:00:08]} 0-1


[Site "https://www.chess.com"]

[Event "Titled Tuesday Blitz November 08 Late 2022"]
[White "Desideri, Ricardo Maruchi"]
[Black "Kovacevic, Radmila"]
[WhiteFideId "2110440"]
[BlackFideId "933171"]
[WhiteElo "1945"]
[BlackElo "2208"]
[Result "0-1"]
[Round "08"]
[TimeControl "180+1"]
[Date "2022.11.09"]
[WhiteClock "0:00:03"]
[BlackClock "0:00:24"]

1. e4 {[%clk 0:02:55]}  e5 {[%clk 0:02:58]} 2. f4 {[%clk 0:02:46]}  exf4 {[%clk 0:02:58]} 3. Bc4 {[%clk 0:02:44]}  d5 {[%clk 0:02:57]} 4. Bxd5 {[%clk 0:02:43]}  c6 {[%clk 0:02:56]} 5. Bb3 {[%clk 0:02:41]}  Qh4+ {[%clk 0:02:55]} 6. Kf1 {[%clk 0:02:40]}  Bg4 {[%clk 0:02:54]} 7. Nf3 {[%clk 0:02:38]}  Bxf3 {[%clk 0:02:53]} 8. Qxf3 {[%clk 0:02:37]}  Bc5 {[%clk 0:02:53]} 9. c3 {[%clk 0:02:36]}  g5 {[%clk 0:02:50]} 10. d4 {[%clk 0:02:35]}  Be7 {[%clk 0:02:48]} 11. g3 {[%clk 0:02:32]}  Qh3+ {[%clk 0:02:40]} 12. Kf2 {[%clk 0:02:30]}  Nh6 {[%clk 0:02:33]} 13. Bd1 {[%clk 0:02:19]}  Nd7 {[%clk 0:01:59]} 14. gxf4 {[%clk 0:02:18]}  Qh4+ {[%clk 0:01:56]} 15. Kf1 {[%clk 0:02:08]}  O-O-O {[%clk 0:01:49]} 16. Qg3 {[%clk 0:02:02]}  gxf4 {[%clk 0:01:47]} 17. Qxh4 {[%clk 0:02:00]}  Bxh4 {[%clk 0:01:46]} 18. Bxf4 {[%clk 0:02:00]}  Ng8 {[%clk 0:01:44]} 19. Bg4 {[%clk 0:01:58]}  Nf6 {[%clk 0:01:39]} 20. Bf5 {[%clk 0:01:58]}  Rde8 {[%clk 0:01:37]} 21. Nd2 {[%clk 0:01:57]}  Nh5 {[%clk 0:01:31]} 22. Bd6 {[%clk 0:01:34]}  Be7 {[%clk 0:01:24]} 23. Bxe7 {[%clk 0:01:20]}  Rxe7 {[%clk 0:01:25]} 24. Nc4 {[%clk 0:01:17]}  Kc7 {[%clk 0:01:23]} 25. e5 {[%clk 0:01:11]}  f6 {[%clk 0:01:00]} 26. e6 {[%clk 0:01:06]}  Nb6 {[%clk 0:00:55]} 27. Nxb6 {[%clk 0:00:52]}  axb6 {[%clk 0:00:56]} 28. Rg1 {[%clk 0:00:47]}  Ng7 {[%clk 0:00:55]} 29. Bh3 {[%clk 0:00:23]}  Nxe6 {[%clk 0:00:55]} 30. Re1 {[%clk 0:00:23]}  Rhe8 {[%clk 0:00:54]} 31. Bxe6 {[%clk 0:00:19]}  Kd6 {[%clk 0:00:50]} 32. Kf2 {[%clk 0:00:15]}  Rxe6 {[%clk 0:00:49]} 33. Rxe6+ {[%clk 0:00:14]}  Kxe6 {[%clk 0:00:45]} 34. Re1+ {[%clk 0:00:13]}  Kf7 {[%clk 0:00:44]} 35. Rxe8 {[%clk 0:00:13]}  Kxe8 {[%clk 0:00:44]} 36. Kf3 {[%clk 0:00:14]}  Kf7 {[%clk 0:00:44]} 37. Kf4 {[%clk 0:00:14]}  Kg6 {[%clk 0:00:42]} 38. h4 {[%clk 0:00:14]}  Kh5 {[%clk 0:00:40]} 39. Kf5 {[%clk 0:00:13]}  Kxh4 {[%clk 0:00:40]} 40. Kxf6 {[%clk 0:00:14]}  Kg4 {[%clk 0:00:39]} 41. Ke5 {[%clk 0:00:12]}  h5 {[%clk 0:00:37]} 42. Ke4 {[%clk 0:00:12]}  Kg3 {[%clk 0:00:37]} 43. c4 {[%clk 0:00:09]}  h4 {[%clk 0:00:38]} 44. d5 {[%clk 0:00:09]}  cxd5+ {[%clk 0:00:36]} 45. cxd5 {[%clk 0:00:08]}  h3 {[%clk 0:00:37]} 46. d6 {[%clk 0:00:09]}  h2 {[%clk 0:00:37]} 47. d7 {[%clk 0:00:07]}  h1=Q+ {[%clk 0:00:37]} 48. Ke5 {[%clk 0:00:07]}  Qe1+ {[%clk 0:00:34]} 49. Kd6 {[%clk 0:00:07]}  Qd2+ {[%clk 0:00:30]} 50. Kc7 {[%clk 0:00:07]}  Qf4+ {[%clk 0:00:27]} 51. Kxb7 {[%clk 0:00:05]}  Qd6 {[%clk 0:00:27]} 52. Kc8 {[%clk 0:00:05]}  Qc6+ {[%clk 0:00:27]} 53. Kd8 {[%clk 0:00:05]}  Kf4 {[%clk 0:00:26]} 54. Ke8 {[%clk 0:00:06]}  Qe6+ {[%clk 0:00:26]} 55. Kd8 {[%clk 0:00:06]}  Ke5 {[%clk 0:00:26]} 56. Kc7 {[%clk 0:00:06]}  Qd6+ {[%clk 0:00:26]} 57. Kc8 {[%clk 0:00:03]}  Qc6+ {[%clk 0:00:24]} 0-1


[Site "https://www.chess.com"]

[Event "Titled Tuesday Blitz November 08 Late 2022"]
[White "Diaz Rosas, Julio Cesar"]
[Black "Liu, Kelsey"]
[WhiteFideId "5105099"]
[BlackFideId "30944481"]
[WhiteElo "2246"]
[BlackElo "2346"]
[Result "1-0"]
[Round "08"]
[TimeControl "180+1"]
[Date "2022.11.09"]
[WhiteClock "0:00:15"]
[BlackClock "0:00:07"]

1. e4 {[%clk 0:03:00]}  c5 {[%clk 0:02:42]} 2. Nf3 {[%clk 0:02:59]}  e6 {[%clk 0:02:41]} 3. g3 {[%clk 0:02:56]}  Nc6 {[%clk 0:02:41]} 4. Bg2 {[%clk 0:02:56]}  Nf6 {[%clk 0:02:41]} 5. Qe2 {[%clk 0:02:50]}  d5 {[%clk 0:02:41]} 6. exd5 {[%clk 0:02:48]}  Nxd5 {[%clk 0:02:40]} 7. O-O {[%clk 0:02:48]}  Be7 {[%clk 0:02:40]} 8. Rd1 {[%clk 0:02:46]}  Bf6 {[%clk 0:02:33]} 9. Nc3 {[%clk 0:02:44]}  O-O {[%clk 0:02:30]} 10. Ne4 {[%clk 0:02:43]}  Nd4 {[%clk 0:02:12]} 11. Nxd4 {[%clk 0:02:36]}  cxd4 {[%clk 0:02:08]} 12. c3 {[%clk 0:02:32]}  Bd7 {[%clk 0:01:45]} 13. Qd3 {[%clk 0:02:21]}  Ba4 {[%clk 0:00:45]} 14. b3 {[%clk 0:02:15]}  dxc3 {[%clk 0:00:42]} 15. dxc3 {[%clk 0:01:17]}  Bc6 {[%clk 0:00:31]} 16. Bb2 {[%clk 0:01:10]}  Qe7 {[%clk 0:00:20]} 17. Qe2 {[%clk 0:01:02]}  Rfd8 {[%clk 0:00:15]} 18. c4 {[%clk 0:00:51]}  Bxb2 {[%clk 0:00:13]} 19. Qxb2 {[%clk 0:00:50]}  Nf6 {[%clk 0:00:12]} 20. Nxf6+ {[%clk 0:00:49]}  gxf6 {[%clk 0:00:13]} 21. Bxc6 {[%clk 0:00:48]}  bxc6 {[%clk 0:00:14]} 22. Qc3 {[%clk 0:00:46]}  e5 {[%clk 0:00:13]} 23. Qe3 {[%clk 0:00:42]}  Kg7 {[%clk 0:00:09]} 24. Qe4 {[%clk 0:00:37]}  Qe6 {[%clk 0:00:07]} 25. h4 {[%clk 0:00:29]}  f5 {[%clk 0:00:07]} 26. Qe3 {[%clk 0:00:29]}  Rd7 {[%clk 0:00:06]} 27. Qg5+ {[%clk 0:00:25]}  Kf8 {[%clk 0:00:05]} 28. Rxd7 {[%clk 0:00:24]}  Qxd7 {[%clk 0:00:06]} 29. Qf6 {[%clk 0:00:21]}  Re8 {[%clk 0:00:02]} 30. Qh8+ {[%clk 0:00:19]}  Ke7 {[%clk 0:00:03]} 31. Qxe5+ {[%clk 0:00:19]}  Kd8 {[%clk 0:00:03]} 32. Qf6+ {[%clk 0:00:19]}  Kc8 {[%clk 0:00:03]} 33. Qc3 {[%clk 0:00:16]}  Re2 {[%clk 0:00:03]} 34. Re1 {[%clk 0:00:15]}  Rxe1+ {[%clk 0:00:02]} 35. Qxe1 {[%clk 0:00:16]}  Kc7 {[%clk 0:00:02]} 36. Qe5+ {[%clk 0:00:15]}  Kb6 {[%clk 0:00:02]} 37. Kg2 {[%clk 0:00:15]}  a6 {[%clk 0:00:01]} 38. b4 {[%clk 0:00:14]}  Qe6 {[%clk 0:00:01]} 39. Qxe6 {[%clk 0:00:14]}  fxe6 {[%clk 0:00:02]} 40. a3 {[%clk 0:00:13]}  c5 {[%clk 0:00:03]} 41. Kf3 {[%clk 0:00:13]}  cxb4 {[%clk 0:00:03]} 42. axb4 {[%clk 0:00:13]}  a5 {[%clk 0:00:03]} 43. bxa5+ {[%clk 0:00:13]}  Kxa5 {[%clk 0:00:04]} 44. Kf4 {[%clk 0:00:14]}  Kb4 {[%clk 0:00:04]} 45. Ke5 {[%clk 0:00:14]}  Kxc4 {[%clk 0:00:05]} 46. Kxe6 {[%clk 0:00:14]}  Kd3 {[%clk 0:00:05]} 47. Kxf5 {[%clk 0:00:14]}  Ke2 {[%clk 0:00:06]} 48. g4 {[%clk 0:00:13]}  Kxf2 {[%clk 0:00:06]} 49. g5 {[%clk 0:00:14]}  Kg3 {[%clk 0:00:07]} 50. h5 {[%clk 0:00:14]}  Kh4 {[%clk 0:00:07]} 51. g6 {[%clk 0:00:15]} 1-0


[Site "https://www.chess.com"]

[Event "Titled Tuesday Blitz November 08 Late 2022"]
[White "Ezat, Mohamed"]
[Black "Martinez Reyes, Pedro Ramon"]
[WhiteFideId "10600906"]
[BlackFideId "3901807"]
[WhiteElo "2386"]
[BlackElo "2354"]
[Result "0-1"]
[Round "08"]
[TimeControl "180+1"]
[Date "2022.11.09"]
[WhiteClock "0:01:44"]
[BlackClock "0:01:54"]

1. d4 {[%clk 0:03:00]}  Nf6 {[%clk 0:02:55]} 2. Nf3 {[%clk 0:02:55]}  c6 {[%clk 0:02:42]} 3. c4 {[%clk 0:02:51]}  g6 {[%clk 0:02:40]} 4. Nc3 {[%clk 0:02:50]}  Bg7 {[%clk 0:02:40]} 5. e4 {[%clk 0:02:50]}  O-O {[%clk 0:02:41]} 6. e5 {[%clk 0:02:50]}  Ne8 {[%clk 0:02:41]} 7. Bd3 {[%clk 0:02:50]}  d6 {[%clk 0:02:42]} 8. exd6 {[%clk 0:02:50]}  Nxd6 {[%clk 0:02:43]} 9. O-O {[%clk 0:02:48]}  Bg4 {[%clk 0:02:43]} 10. Be3 {[%clk 0:02:46]}  Nf5 {[%clk 0:02:42]} 11. Bxf5 {[%clk 0:02:46]}  Bxf5 {[%clk 0:02:43]} 12. Ne5 {[%clk 0:02:43]}  Nd7 {[%clk 0:02:40]} 13. f4 {[%clk 0:02:41]}  Nxe5 {[%clk 0:02:31]} 14. dxe5 {[%clk 0:02:38]}  Bd3 {[%clk 0:02:30]} 15. Re1 {[%clk 0:02:34]}  Bxc4 {[%clk 0:02:30]} 16. Qa4 {[%clk 0:02:34]}  b5 {[%clk 0:02:29]} 17. Qa6 {[%clk 0:02:31]}  Qc8 {[%clk 0:02:27]} 18. Qxc8 {[%clk 0:02:29]}  Rfxc8 {[%clk 0:02:28]} 19. b3 {[%clk 0:02:25]}  Be6 {[%clk 0:02:25]} 20. Ne4 {[%clk 0:02:25]}  f6 {[%clk 0:02:24]} 21. exf6 {[%clk 0:02:22]}  exf6 {[%clk 0:02:25]} 22. Nc5 {[%clk 0:02:22]}  Bd5 {[%clk 0:02:25]} 23. Bd4 {[%clk 0:02:21]}  Re8 {[%clk 0:02:21]} 24. f5 {[%clk 0:02:16]}  gxf5 {[%clk 0:02:20]} 25. Nd7 {[%clk 0:02:10]}  Kf7 {[%clk 0:02:18]} 26. Kf2 {[%clk 0:02:10]}  Re4 {[%clk 0:02:16]} 27. Rxe4 {[%clk 0:02:08]}  fxe4 {[%clk 0:02:17]} 28. Nc5 {[%clk 0:02:05]}  a5 {[%clk 0:02:16]} 29. g4 {[%clk 0:02:01]}  h5 {[%clk 0:02:15]} 30. h3 {[%clk 0:02:00]}  hxg4 {[%clk 0:02:15]} 31. hxg4 {[%clk 0:02:01]}  Rh8 {[%clk 0:02:16]} 32. Kg3 {[%clk 0:02:01]}  Bf8 {[%clk 0:02:14]} 33. Re1 {[%clk 0:02:00]}  Bd6+ {[%clk 0:02:14]} 34. Kf2 {[%clk 0:01:59]}  Rh2+ {[%clk 0:02:14]} 35. Ke3 {[%clk 0:01:59]}  Bg3 {[%clk 0:02:10]} 36. Rd1 {[%clk 0:01:56]}  Bf2+ {[%clk 0:02:06]} 37. Kf4 {[%clk 0:01:56]}  e3 {[%clk 0:02:03]} 38. Ne4 {[%clk 0:01:45]}  Bxe4 {[%clk 0:01:53]} 39. Kxe4 {[%clk 0:01:44]}  e2 {[%clk 0:01:54]} 0-1


[Site "https://www.chess.com"]

[Event "Titled Tuesday Blitz November 08 Late 2022"]
[White "Faizrakhmanov, Ramil"]
[Black "Putnam, Liam"]
[WhiteFideId "24103209"]
[BlackFideId "30938279"]
[WhiteElo "2437"]
[BlackElo "2082"]
[Result "0-1"]
[Round "08"]
[TimeControl "180+1"]
[Date "2022.11.08"]
[WhiteClock "0:01:06"]
[BlackClock "0:01:10"]

1. d4 {[%clk 0:02:59]}  Nf6 {[%clk 0:02:59]} 2. c4 {[%clk 0:03:00]}  e6 {[%clk 0:02:59]} 3. Nf3 {[%clk 0:03:00]}  Bb4+ {[%clk 0:02:58]} 4. Bd2 {[%clk 0:03:00]}  a5 {[%clk 0:02:58]} 5. a3 {[%clk 0:02:59]}  Be7 {[%clk 0:02:55]} 6. Nc3 {[%clk 0:02:59]}  d5 {[%clk 0:02:54]} 7. Bf4 {[%clk 0:02:59]}  O-O {[%clk 0:02:53]} 8. e3 {[%clk 0:03:00]}  b6 {[%clk 0:02:45]} 9. cxd5 {[%clk 0:03:00]}  Nxd5 {[%clk 0:02:33]} 10. Nxd5 {[%clk 0:02:59]}  exd5 {[%clk 0:02:34]} 11. Bd3 {[%clk 0:02:57]}  Ba6 {[%clk 0:02:31]} 12. O-O {[%clk 0:02:54]}  Bd6 {[%clk 0:02:09]} 13. Bxh7+ {[%clk 0:02:17]}  Kxh7 {[%clk 0:02:07]} 14. Ng5+ {[%clk 0:02:17]}  Kg8 {[%clk 0:02:07]} 15. Qh5 {[%clk 0:02:10]}  Bd3 {[%clk 0:02:07]} 16. Rfc1 {[%clk 0:01:59]}  Bg6 {[%clk 0:02:06]} 17. Qg4 {[%clk 0:01:58]}  Bxf4 {[%clk 0:02:04]} 18. Qxf4 {[%clk 0:01:58]}  Na6 {[%clk 0:02:00]} 19. h4 {[%clk 0:01:57]}  Qf6 {[%clk 0:01:57]} 20. Qg3 {[%clk 0:01:56]}  c5 {[%clk 0:01:49]} 21. Rd1 {[%clk 0:01:49]}  c4 {[%clk 0:01:46]} 22. f3 {[%clk 0:01:45]}  Rfe8 {[%clk 0:01:45]} 23. Kf2 {[%clk 0:01:44]}  b5 {[%clk 0:01:41]} 24. Rh1 {[%clk 0:01:41]}  Rxe3 {[%clk 0:01:31]} 25. h5 {[%clk 0:01:16]}  Qxd4 {[%clk 0:01:09]} 26. hxg6 {[%clk 0:01:15]}  Rxa3+ {[%clk 0:01:09]} 27. Ke2 {[%clk 0:01:09]}  Qe3+ {[%clk 0:01:08]} 28. Kd1 {[%clk 0:01:06]}  Rxa1+ {[%clk 0:01:09]} 29. Kc2 {[%clk 0:01:06]}  Qd3# {[%clk 0:01:10]} 0-1


[Site "https://www.chess.com"]

[Event "Titled Tuesday Blitz November 08 Late 2022"]
[White "Ferreira, Vitor Hugo Vieira"]
[Black "Therrien, Alex L"]
[WhiteFideId "2119765"]
[BlackFideId "412856"]
[WhiteElo "2168"]
[BlackElo "2214"]
[Result "1-0"]
[Round "08"]
[TimeControl "180+1"]
[Date "2022.11.09"]
[WhiteClock "0:01:26"]
[BlackClock "0:00:01"]

1. Nf3 {[%clk 0:03:00]}  d5 {[%clk 0:02:59]} 2. g3 {[%clk 0:03:00]}  c6 {[%clk 0:02:59]} 3. Bg2 {[%clk 0:02:59]}  Bf5 {[%clk 0:03:00]} 4. O-O {[%clk 0:03:00]}  e6 {[%clk 0:03:01]} 5. c4 {[%clk 0:03:00]}  Nf6 {[%clk 0:03:01]} 6. cxd5 {[%clk 0:03:01]}  exd5 {[%clk 0:03:00]} 7. d3 {[%clk 0:03:01]}  Be7 {[%clk 0:03:00]} 8. Nc3 {[%clk 0:03:02]}  O-O {[%clk 0:02:59]} 9. Nd4 {[%clk 0:03:02]}  Bg6 {[%clk 0:02:57]} 10. e4 {[%clk 0:03:02]}  Na6 {[%clk 0:02:07]} 11. e5 {[%clk 0:03:00]}  Nd7 {[%clk 0:01:46]} 12. f4 {[%clk 0:02:56]}  h6 {[%clk 0:01:32]} 13. f5 {[%clk 0:02:56]}  Bh7 {[%clk 0:01:31]} 14. f6 {[%clk 0:02:54]}  Bc5 {[%clk 0:01:29]} 15. Qg4 {[%clk 0:02:49]}  Bg6 {[%clk 0:01:20]} 16. fxg7 {[%clk 0:02:42]}  Kxg7 {[%clk 0:01:19]} 17. e6 {[%clk 0:02:23]}  Ne5 {[%clk 0:01:03]} 18. Qf4 {[%clk 0:02:23]}  Qg5 {[%clk 0:00:44]} 19. Qf2 {[%clk 0:02:12]}  Nxd3 {[%clk 0:00:30]} 20. Bxg5 {[%clk 0:02:01]}  Nxf2 {[%clk 0:00:30]} 21. Be3 {[%clk 0:02:00]}  Ng4 {[%clk 0:00:28]} 22. Nf5+ {[%clk 0:01:51]}  Bxf5 {[%clk 0:00:25]} 23. Bxc5 {[%clk 0:01:52]}  Nxc5 {[%clk 0:00:24]} 24. Rxf5 {[%clk 0:01:51]}  fxe6 {[%clk 0:00:23]} 25. Rxf8 {[%clk 0:01:49]}  Rxf8 {[%clk 0:00:23]} 26. b4 {[%clk 0:01:42]}  Nd3 {[%clk 0:00:20]} 27. Bh3 {[%clk 0:01:42]}  h5 {[%clk 0:00:17]} 28. b5 {[%clk 0:01:41]}  c5 {[%clk 0:00:15]} 29. b6 {[%clk 0:01:39]}  axb6 {[%clk 0:00:14]} 30. Rb1 {[%clk 0:01:39]}  Ndf2 {[%clk 0:00:03]} 31. Bg2 {[%clk 0:01:38]}  d4 {[%clk 0:00:02]} 32. Ne2 {[%clk 0:01:35]}  Ne3 {[%clk 0:00:01]} 33. Bxb7 {[%clk 0:01:33]}  Rf7 {[%clk 0:00:01]} 34. Bc6 {[%clk 0:01:31]}  Nd3 {[%clk 0:00:02]} 35. Be4 {[%clk 0:01:27]}  Nb4 {[%clk 0:00:01]} 36. Nf4 {[%clk 0:01:26]} 1-0


[Site "https://www.chess.com"]